bitfinex/quotes_SOLUSD_20220302
["timestamp","ask_amount","ask_price","bid_price","bid_amount"]
[1646215807103,14.6607,104.16,104.08,74.82255651]
[1646215807502,12.65983022,104.15,104.08,74.82255651]
[1646215807704,12.90983022,104.15,104.08,74.82255651]
[1646215808506,0.25,104.15,104.08,74.82255651]
[1646215808707,14.6607,104.16,104.08,74.82255651]
[1646215809910,0.25,104.16,104.08,185.43065651]
[1646215810108,58.64070132,104.18,104.08,185.43065651]
[1646215810908,25.64937183,104.19,104.08,243.08065651]
[1646215811110,39.49067554,104.2,104.1,96.2]
[1646215811308,39.49067554,104.2,104.12,52.89469094]
[1646215811510,39.49067554,104.2,104.12,59.31069094]
[1646215811709,44.49067554,104.2,104.12,59.31069094]
[1646215812413,5.0,104.2,104.12,155.51069094]
[1646215812611,14.4023,104.22,104.12,155.51069094]
[1646215812810,23.7039,104.24,104.14,50.39398503]
[1646215813011,23.7039,104.24,104.16,54.39868601]
[1646215813210,23.7039,104.24,104.16,61.66768601]
[1646215813412,12.63252939,104.23,104.16,61.66768601]
[1646215813810,24.1449,104.25,104.16,61.66768601]
[1646215814211,24.1449,104.25,104.18,58.40585569]
[1646215814411,24.1449,104.25,104.18,58.65585569]
[1646215814811,37.7519,104.26,104.18,58.65585569]
[1646215817636,38.0019,104.26,104.18,58.65585569]
[1646215817834,40.29333078,104.26,104.18,58.65585569]
[1646215818336,45.29333078,104.26,104.18,58.65585569]
[1646215819734,71.18270261,104.26,104.18,58.65585569]
[1646215820035,14.399,104.24,104.18,58.65585569]
[1646215820337,14.649,104.24,104.17,24.3619]
[1646215820535,16.94043078,104.24,104.17,24.3619]
[1646215820734,21.94043078,104.24,104.17,24.3619]
[1646215820934,16.94043078,104.24,104.17,22.44106]
[1646215821434,5.0,104.23,104.16,56.06662492]
[1646215821636,19.6511,104.23,104.16,56.06662492]
[1646215822035,14.4011,104.23,104.16,56.06662492]
[1646215822235,2.29143078,104.24,104.16,56.06662492]
[1646215822637,2.29143078,104.24,104.16,56.31662492]
[1646215824137,2.29143078,104.24,104.16,70.71322492]
[1646215824939,2.54143078,104.24,104.16,70.71322492]
[1646215825238,2.54143078,104.24,104.16,166.91322492]
[1646215825839,0.25,104.24,104.16,166.91322492]
[1646215826041,14.6482,104.25,104.16,70.71322492]
[1646215826539,14.6482,104.25,104.16,56.06662492]
[1646215826739,28.47963078,104.25,104.16,56.06662492]
[1646215827139,144.02900261,104.25,104.14,24.3418]
[1646215827340,14.4046,104.21,104.13,22.5602]
[1646215827543,14.6546,104.21,104.13,22.5602]
[1646215828140,113.14603078,104.21,104.08,34.4233]
[1646215828340,113.14603078,104.21,104.09,23.5286]
[1646215828341,11.54,104.2,104.09,23.5286]
[1646215828540,11.79,104.2,104.09,23.5286]
[1646215828941,2.29143078,104.19,104.09,23.5286]
[1646215829142,22.65143078,104.19,104.1,48.15799349]
[1646215829541,22.65143078,104.19,104.1,48.40799349]
[1646215829742,5.0,104.18,104.1,48.40799349]
[1646215829943,14.4084,104.17,104.1,48.40799349]
[1646215830144,14.6584,104.17,104.1,48.40799349]
[1646215831144,5.0,104.16,104.1,48.40799349]
[1646215831344,12.215,104.16,104.1,48.40799349]
[1646215831543,26.6249,104.16,104.1,48.40799349]
[1646215832546,21.6249,104.16,104.1,48.40799349]
[1646215833349,14.6599,104.16,104.1,48.40799349]
[1646215838555,14.6599,104.16,104.1,48.15799349]
[1646215840875,14.6599,104.16,104.09,23.5286]
[1646215841068,14.6599,104.16,104.09,23.7786]
[1646215841768,14.6599,104.16,104.1,44.55993703]
[1646215842567,14.6599,104.16,104.09,23.7786]
[1646215844089,14.6599,104.16,104.1,47.91326137]
[1646215844288,14.6599,104.16,104.1,48.16326137]
[1646215844691,14.4099,104.16,104.1,48.16326137]
[1646215846093,14.6599,104.16,104.1,48.16326137]
[1646215849599,0.25,104.16,104.1,48.16326137]
[1646215849801,5.25,104.17,104.1,48.16326137]
[1646215850902,5.0,104.17,104.1,48.16326137]
[1646215852207,5.25,104.17,104.1,48.16326137]
[1646215852404,0.25,104.17,104.1,48.16326137]
[1646215852605,14.6577,104.18,104.1,48.16326137]
[1646215857417,19.6577,104.18,104.1,48.16326137]
[1646215857817,33.8222,104.18,104.1,48.16326137]
[1646215859317,5.0,104.18,104.1,62.56866137]
[1646215859518,60.8686,104.2,104.1,158.76866137]
[1646215859718,60.8686,104.2,104.11,24.585]
[1646215859920,60.8686,104.2,104.12,60.96124493]
[1646215860119,60.8686,104.2,104.12,61.21124493]
[1646215862143,61.1186,104.2,104.12,61.21124493]
[1646215864451,72.6586,104.2,104.12,61.21124493]
[1646215865048,74.94904574,104.2,104.12,61.21124493]
[1646215865249,79.94904574,104.2,104.12,61.21124493]
[1646215865855,79.94904574,104.2,104.12,0.25]
[1646215866053,79.94904574,104.2,104.11,24.835]
[1646215866452,171.14904574,104.2,104.11,24.585]
[1646215866654,196.9717509,104.2,104.11,24.585]
[1646215866853,197.7527509,104.2,104.11,24.585]
[1646215867054,5.0,104.16,104.11,24.585]
[1646215867257,37.5587,104.16,104.11,24.585]
[1646215867655,37.5587,104.16,104.09,45.45281165]
[1646215868253,32.5587,104.16,104.09,45.45281165]
[1646215869258,37.5587,104.16,104.09,45.45281165]
[1646215869454,37.5587,104.16,104.09,45.70281165]
[1646215869656,32.5587,104.16,104.09,45.70281165]
[1646215869856,37.5587,104.16,104.09,45.70281165]
[1646215870559,54.47954574,104.16,104.09,45.70281165]
[1646215870757,49.47954574,104.16,104.09,45.70281165]
[1646215871159,54.47954574,104.16,104.09,45.70281165]
[1646215871462,49.47954574,104.16,104.09,45.70281165]
[1646215871860,54.47954574,104.16,104.09,45.70281165]
[1646215872662,48.12054574,104.16,104.09,45.70281165]
[1646215873863,43.12054574,104.16,104.09,45.70281165]
[1646215874266,49.5827,104.18,104.09,45.70281165]
[1646215874468,64.1598,104.18,104.1,24.4037]
[1646215874765,64.1598,104.18,104.1,24.6537]
[1646215875566,64.4098,104.18,104.1,24.6537]
[1646215876366,66.70024574,104.18,104.1,24.6537]
[1646215876768,66.70024574,104.18,104.1,0.25]
[1646215877069,66.70024574,104.18,104.08,23.1333]
[1646215877468,5.0,104.17,104.08,23.1333]
[1646215877667,25.9498,104.16,104.08,66.0842559]
[1646215877866,14.6598,104.16,104.08,66.0842559]
[1646215879072,14.6598,104.16,104.08,80.4925559]
[1646215880169,14.6598,104.16,104.08,37.5416]
[1646215880372,122.3998,104.16,104.08,22.8833]
[1646215880569,5.0,104.15,104.06,26.9501]
[1646215880769,14.4147,104.13,104.06,23.1091]
[1646215880970,14.6647,104.13,104.06,23.1091]
[1646215881168,11.54,104.12,104.06,23.1091]
[1646215881370,11.79,104.12,104.06,23.1091]
[1646215881969,26.2053,104.12,104.06,23.1091]
[1646215882271,26.2053,104.12,104.06,23.3591]
[1646215884778,11.54,104.12,104.06,23.3591]
[1646215884974,23.7051,104.14,104.06,23.3591]
[1646215885779,34.6274,104.16,104.06,133.9699]
[1646215885780,37.4982,104.16,104.06,133.9699]
[1646215885980,23.0874,104.16,104.06,133.9699]
[1646215886279,23.0874,104.16,104.07,6.0]
[1646215886482,26.1171,104.18,104.07,6.25]
[1646215886680,53.16994574,104.18,104.09,55.03374363]
[1646215886882,17.65546372,104.17,104.09,55.28374363]
[1646215887081,25.95,104.16,104.09,55.28374363]
[1646215889198,26.2,104.16,104.09,55.28374363]
[1646215891001,0.25,104.16,104.09,55.28374363]
[1646215891202,5.0,104.17,104.09,165.89064363]
[1646215891402,5.0,104.17,104.09,173.78164363]
[1646215891601,5.0,104.17,104.09,177.62264363]
[1646215892801,24.7624,104.18,104.09,177.62264363]
[1646215893002,25.0124,104.18,104.1,37.7415]
[1646215893305,25.0124,104.18,104.1,37.9915]
[1646215893904,39.4196,104.18,104.1,37.9915]
[1646215894705,50.9596,104.18,104.1,23.586]
[1646215894907,77.2801109,104.18,104.1,23.586]
[1646215895404,12.65683316,104.17,104.1,23.586]
[1646215895605,25.9501,104.16,104.1,23.586]
[1646215895804,26.2001,104.16,104.1,23.586]
[1646215897004,26.2001,104.16,104.1,23.336]
[1646215898609,26.2001,104.16,104.1,23.586]
[1646215898809,40.5575,104.16,104.1,23.586]
[1646215899810,26.2001,104.16,104.1,23.586]
[1646215900910,50.71,104.18,104.1,23.586]
[1646215901111,19.5692,104.19,104.1,30.528]
[1646215901512,5.0,104.19,104.11,3.84]
[1646215901710,5.0,104.19,104.11,4.09]
[1646215902113,59.7448,104.21,104.11,4.09]
[1646215902314,59.9948,104.21,104.12,23.0759]
[1646215902513,104.81087849,104.21,104.13,50.63312118]
[1646215902716,104.81087849,104.21,104.13,50.88312118]
[1646215903113,14.4052,104.2,104.13,50.88312118]
[1646215903314,14.6552,104.2,104.13,50.88312118]
[1646215903513,26.1952,104.2,104.13,50.88312118]
[1646215907318,26.1952,104.2,104.13,54.72312118]
[1646215907518,14.6552,104.2,104.13,54.72312118]
[1646215907921,14.6552,104.2,104.13,50.88312118]
[1646215908319,26.1952,104.2,104.13,50.88312118]
[1646215909922,50.22526516,104.2,104.13,50.88312118]
[1646215911923,50.22526516,104.2,104.13,0.25]
[1646215912124,50.22526516,104.2,104.12,27.1659]
[1646215913026,50.22526516,104.2,104.12,77.44363342]
[1646215913425,26.1952,104.2,104.12,77.44363342]
[1646215915126,0.25,104.2,104.12,188.04643342]
[1646215915327,48.4548,104.21,104.12,188.04643342]
[1646215916127,48.2048,104.21,104.12,188.04643342]
[1646215916729,62.6078,104.21,104.12,91.84643342]
[1646215917027,74.1478,104.21,104.12,91.84643342]
[1646215917228,74.1478,104.21,104.12,77.44363342]
[1646215917428,79.3978,104.21,104.12,77.44363342]
[1646215917630,119.21387849,104.21,104.12,77.44363342]
[1646215917828,19.4051,104.2,104.12,77.44363342]
[1646215918030,31.1951,104.2,104.12,77.44363342]
[1646215918428,26.1951,104.2,104.12,77.44363342]
[1646215918629,31.1951,104.2,104.12,77.44363342]
[1646215920835,45.3929,104.2,104.12,77.44363342]
[1646215921033,40.3929,104.2,104.12,77.44363342]
[1646215923257,26.1951,104.2,104.12,77.44363342]
[1646215923454,0.25,104.2,104.12,77.44363342]
[1646215923655,25.9422,104.22,104.12,188.04653342]
[1646215923854,5.0,104.23,104.12,273.24413224]
[1646215924054,5.0,104.23,104.14,96.2]
[1646215924254,5.0,104.23,104.15,23.4789]
[1646215924453,14.4477,104.24,104.16,45.4603769]
[1646215924655,25.9877,104.24,104.16,45.7103769]
[1646215926056,40.3872,104.24,104.16,60.1079769]
[1646215926656,11.54,104.24,104.16,156.3079769]
[1646215926956,25.9898992,104.27,104.17,102.2]
[1646215927158,25.9898992,104.27,104.19,14.3931]
[1646215927356,37.5298992,104.27,104.2,49.28518139]
[1646215927556,37.5298992,104.27,104.2,49.53518139]
[1646215927557,25.9898992,104.27,104.2,49.53518139]
[1646215927956,26.2398992,104.27,104.2,73.25748139]
[1646215928158,52.1743992,104.27,104.2,23.9723]
[1646215928359,96.93674436,104.27,104.2,23.9723]
[1646215928860,12.61523969,104.26,104.2,23.9723]
[1646215929060,12.86523969,104.26,104.2,23.9723]
[1646215929457,0.25,104.26,104.2,23.9723]
[1646215930258,82.54224436,104.27,104.2,23.9723]
[1646215930459,96.93694436,104.27,104.2,23.9723]
[1646215930660,99.2273901,104.27,104.2,0.25]
[1646215930861,99.2273901,104.27,104.19,48.49612348]
[1646215931059,104.2273901,104.27,104.19,48.49612348]
[1646215931457,99.2273901,104.27,104.19,71.21792348]
[1646215931658,96.93694436,104.27,104.19,71.21792348]
[1646215932559,51.64633103,104.27,104.19,85.61122348]
[1646215932759,27.6699992,104.27,104.19,85.61122348]
[1646215934060,27.6699992,104.27,104.19,181.81122348]
[1646215934260,13.2752992,104.27,104.19,181.81122348]
[1646215934860,1.4852992,104.27,104.19,181.81122348]
[1646215935060,1.4852992,104.27,104.2,102.2]
[1646215935260,1.4852992,104.27,104.21,14.3903]
[1646215935463,1.4852992,104.27,104.21,37.7076]
[1646215937563,1.7352992,104.27,104.21,23.3173]
[1646215937764,1.7352992,104.27,104.21,23.0673]
[1646215938466,11.54,104.26,104.19,71.29032348]
[1646215938663,11.79,104.26,104.19,71.29032348]
[1646215939064,11.79,104.26,104.19,71.54032348]
[1646215939466,26.1861,104.26,104.19,71.29032348]
[1646215940166,26.1861,104.26,104.19,23.0442]
[1646215940566,26.1861,104.26,104.19,23.2942]
[1646215940767,26.1861,104.26,104.19,23.0442]
[1646215941168,14.4002,104.23,104.17,23.2807]
[1646215941367,14.6502,104.23,104.17,23.2807]
[1646215941766,0.25,104.23,104.17,23.2807]
[1646215941967,23.4964,104.25,104.17,23.2807]
[1646215941968,11.54,104.25,104.17,119.4807]
[1646215942166,0.25,104.25,104.17,142.7917]
[1646215942366,0.25,104.25,104.17,143.0417]
[1646215943068,57.0599992,104.27,104.17,143.0417]
[1646215943069,71.7052992,104.27,104.17,143.0417]
[1646215943268,71.7052992,104.27,104.19,52.4176279]
[1646215943470,66.7052992,104.27,104.19,75.3849279]
[1646215943868,13.0252992,104.27,104.19,75.3849279]
[1646215944074,13.0252992,104.27,104.19,171.5849279]
[1646215944469,13.0252992,104.27,104.19,175.4219279]
[1646215944669,1.4852992,104.27,104.19,175.4219279]
[1646215944869,1.4852992,104.27,104.19,189.8151279]
[1646215945070,1.4852992,104.27,104.2,102.2]
[1646215945271,1.4852992,104.27,104.2,110.634]
[1646215946973,1.4852992,104.27,104.21,3.837]
[1646215947176,1.4852992,104.27,104.21,18.4771]
[1646215947575,115.85084998,104.3,104.21,42.3902]
[1646215947775,108.80398319,104.3,104.21,42.3902]
[1646215948075,113.80398319,104.3,104.21,42.3902]
[1646215948875,37.37878319,104.3,104.21,204.5792]
[1646215949076,32.37878319,104.33,104.23,47.4419535]
[1646215949278,71.6893,104.35,104.25,14.3847]
[1646215949279,38.3971,104.35,104.25,14.3847]
[1646215949475,5.0,104.33,104.25,22.8527]
[1646215949675,44.945775,104.34,104.25,22.8527]
[1646215950075,46.76428319,104.34,104.25,22.8527]
[1646215950275,46.76428319,104.34,104.25,119.0527]
[1646215950475,32.37878319,104.34,104.27,53.06158052]
[1646215950677,32.37878319,104.34,104.27,53.31158052]
[1646215951078,32.62878319,104.34,104.27,53.31158052]
[1646215951480,32.37878319,104.34,104.27,53.31158052]
[1646215951678,20.83878319,104.34,104.27,67.69358052]
[1646215952288,39.3856,104.35,104.27,67.69358052]
[1646215952883,50.9256,104.35,104.27,67.69358052]
[1646215953490,26.2047,104.35,104.27,163.89358052]
[1646215953691,26.4547,104.35,104.27,163.89358052]
[1646215954091,26.4547,104.35,104.27,67.69358052]
[1646215954291,47.29348319,104.35,104.27,67.69358052]
[1646215954491,47.04348319,104.35,104.27,67.69358052]
[1646215955707,47.29348319,104.35,104.27,67.69358052]
[1646215955906,61.67698319,104.35,104.27,67.69358052]
[1646215956106,26.4547,104.35,104.27,67.69358052]
[1646215956305,26.2047,104.35,104.27,67.69358052]
[1646215957607,26.4547,104.35,104.27,67.69358052]
[1646215958807,14.6647,104.35,104.27,67.69358052]
[1646215959009,0.25,104.35,104.27,70.24262055]
[1646215959206,19.8444,104.36,104.27,70.24262055]
[1646215960308,31.3844,104.36,104.27,166.44262055]
[1646215961710,166.5432625,104.36,104.26,11.155]
[1646215961910,186.43442061,104.36,104.26,3.834]
[1646215962110,206.17642061,104.36,104.26,3.834]
[1646215962310,5.0,104.34,104.26,3.834]
[1646215962511,11.54,104.33,104.26,3.834]
[1646215962711,14.3878,104.32,104.26,3.834]
[1646215962912,26.1778,104.32,104.26,3.834]
[1646215963514,26.1778,104.32,104.24,22.8937]
[1646215964315,52.30372379,104.32,104.22,22.5566]
[1646215964715,148.50372379,104.32,104.22,22.5566]
[1646215965217,52.30372379,104.32,104.22,22.5566]
[1646215965617,19.3911,104.3,104.22,74.69240951]
[1646215965818,31.1811,104.3,104.22,74.69240951]
[1646215966020,26.1811,104.3,104.22,74.69240951]
[1646215966218,14.5885,104.32,104.22,170.39240951]
[1646215966419,26.3785,104.32,104.22,192.24060951]
[1646215967418,11.54,104.32,104.22,192.24060951]
[1646215967918,11.54,104.32,104.22,74.19240951]
[1646215967919,25.928,104.32,104.22,74.19240951]
[1646215968119,48.41344986,104.32,104.22,74.19240951]
[1646215968719,5.0,104.31,104.22,74.19240951]
[1646215968920,5.25,104.31,104.22,74.19240951]
[1646215969122,0.25,104.31,104.22,74.19240951]
[1646215969320,5.25,104.31,104.22,74.19240951]
[1646215970024,19.6394,104.31,104.22,74.19240951]
[1646215970622,19.6394,104.31,104.22,22.3066]
[1646215970823,14.6394,104.31,104.22,22.3066]
[1646215971028,19.6394,104.31,104.22,22.3066]
[1646215971924,14.6394,104.31,104.22,22.0566]
[1646215972129,50.96171665,104.31,104.22,22.0566]
[1646215972525,55.96171665,104.31,104.22,22.0566]
[1646215973127,50.96171665,104.31,104.22,22.0566]
[1646215973529,5.0,104.3,104.22,22.3066]
[1646215973729,14.3921,104.29,104.22,22.3066]
[1646215974028,14.6421,104.29,104.22,22.3066]
[1646215974929,14.6421,104.29,104.22,22.0566]
[1646215975733,19.6421,104.29,104.22,22.0566]
[1646215976232,33.8974,104.29,104.22,22.0566]
[1646215976431,0.25,104.29,104.23,47.22600268]
[1646215976631,16.93666679,104.31,104.23,47.47600268]
[1646215977032,21.93666679,104.31,104.23,47.47600268]
[1646215977634,21.93666679,104.31,104.23,0.25]
[1646215977834,21.93666679,104.31,104.22,22.3066]
[1646215978334,16.93666679,104.31,104.22,22.3066]
[1646215978534,21.93666679,104.31,104.22,22.3066]
[1646215980734,33.47666679,104.31,104.22,22.3066]
[1646215980940,30.9298,104.31,104.22,118.5066]
[1646215981137,16.54,104.31,104.22,118.5066]
[1646215981341,5.0,104.32,104.22,118.5066]
[1646215981967,97.92511665,104.33,104.22,118.5066]
[1646215982137,97.92511665,104.33,104.22,22.3066]
[1646215982337,19.3879,104.32,104.22,22.3066]
[1646215982537,30.9279,104.32,104.22,22.3066]
[1646215982739,50.71021665,104.32,104.22,22.0566]
[1646215982938,55.71021665,104.32,104.22,22.0566]
[1646215983139,55.96021665,104.32,104.22,22.0566]
[1646215983339,50.96021665,104.32,104.22,22.0566]
[1646215983540,55.96021665,104.32,104.22,22.0566]
[1646215983938,50.96021665,104.32,104.22,22.0566]
[1646215984139,50.96021665,104.32,104.22,22.3066]
[1646215984338,70.85137476,104.32,104.22,22.3066]
[1646215984541,14.3921,104.29,104.22,22.3066]
[1646215984740,26.1821,104.29,104.22,22.3066]
[1646215986740,26.1821,104.29,104.2,97.3249]
[1646215986940,28.47896679,104.29,104.2,22.6059]
[1646215987145,65.17768332,104.29,104.2,22.6059]
[1646215987544,14.3957,104.27,104.19,22.9917]
[1646215987744,14.6457,104.27,104.19,77.67683603]
[1646215988146,14.6457,104.27,104.19,77.92683603]
[1646215989250,14.6457,104.27,104.19,77.67683603]
[1646215990368,14.6457,104.27,104.19,77.92683603]
[1646215991368,14.6457,104.27,104.19,174.12683603]
[1646215991569,24.4866,104.28,104.19,174.12683603]
[1646215991769,24.4866,104.28,104.2,22.6206]
[1646215991970,24.4866,104.28,104.2,22.8706]
[1646215992173,14.3923,104.29,104.2,121.61964003]
[1646215992373,5.0,104.31,104.22,153.85]
[1646215992571,5.0,104.31,104.25,147.08138949]
[1646215992771,5.0,104.31,104.25,155.29438949]
[1646215993171,14.7208,104.33,104.25,8.213]
[1646215993373,19.7208,104.33,104.25,8.213]
[1646215993576,11.54,104.32,104.25,0.25]
[1646215993873,26.178,104.32,104.24,24.4075]
[1646215995274,31.178,104.32,104.24,24.4075]
[1646215995674,26.178,104.32,104.24,24.4075]
[1646215996074,31.178,104.32,104.24,24.4075]
[1646215996276,26.178,104.32,104.24,24.4075]
[1646215996474,31.178,104.32,104.24,24.4075]
[1646215997378,26.178,104.32,104.24,24.4075]
[1646215997678,19.3898,104.31,104.24,24.4075]
[1646215997875,19.6398,104.31,104.24,24.4075]
[1646215998675,14.6398,104.31,104.24,24.4075]
[1646216002481,19.6398,104.31,104.24,24.4075]
[1646216003379,14.6398,104.31,104.24,24.4075]
[1646216005581,14.6398,104.31,104.24,24.1575]
[1646216005782,26.1798,104.31,104.24,24.1575]
[1646216006982,26.1798,104.31,104.23,24.1285]
[1646216007181,28.47666679,104.31,104.2,79.5288]
[1646216007381,24.5953,104.3,104.21,24.1347]
[1646216007581,14.3943,104.28,104.21,24.1347]
[1646216007783,14.6443,104.28,104.21,24.1347]
[1646216008282,26.1843,104.28,104.21,24.1347]
[1646216010685,31.1843,104.28,104.21,24.1347]
[1646216011585,26.1843,104.28,104.21,24.1347]
[1646216011783,31.1843,104.28,104.21,24.1347]
[1646216012385,31.1843,104.28,104.22,58.86419875]
[1646216014188,31.1843,104.28,104.21,24.1347]
[1646216014387,31.1843,104.28,104.21,24.3847]
[1646216015288,31.1843,104.28,104.21,74.96665163]
[1646216016292,31.1843,104.28,104.21,24.1347]
[1646216021309,33.48116679,104.28,104.17,23.514]
[1646216021509,123.992,104.27,104.17,23.514]
[1646216021706,14.4007,104.24,104.17,23.514]
[1646216021907,11.54,104.23,104.17,23.514]
[1646216022107,11.54,104.23,104.16,22.7674]
[1646216022108,14.09216611,104.23,104.16,22.7674]
[1646216022307,5.0,104.22,104.13,22.7674]
[1646216022508,16.79,104.22,104.13,22.7674]
[1646216022708,11.79,104.22,104.13,22.7674]
[1646216022908,5.0,104.21,104.13,22.7674]
[1646216023109,14.4052,104.2,104.13,22.7674]
[1646216023325,14.6552,104.2,104.13,22.7674]
[1646216024124,14.6552,104.2,104.13,80.66477774]
[1646216024326,14.6552,104.2,104.13,80.91477774]
[1646216024728,14.6552,104.2,104.13,80.66477774]
[1646216025227,14.6552,104.2,104.13,22.7674]
[1646216025426,43.89769144,104.2,104.13,22.7674]
[1646216025629,72.11864276,104.2,104.13,22.7674]
[1646216025830,98.19297763,104.2,104.13,22.7674]
[1646216026230,103.19297763,104.2,104.13,22.7674]
[1646216026627,103.19297763,104.2,104.12,76.67895944]
[1646216026829,103.19297763,104.2,104.12,76.92895944]
[1646216027431,73.95048619,104.2,104.12,76.92895944]
[1646216027931,103.19297763,104.2,104.12,76.92895944]
[1646216028930,74.77019144,104.2,104.12,76.92895944]
[1646216029131,40.5277,104.2,104.12,76.92895944]
[1646216030332,39.3277,104.2,104.12,76.92895944]
[1646216031032,13.4552,104.2,104.12,76.92895944]
[1646216034135,13.2052,104.2,104.12,76.92895944]
[1646216034334,40.92209989,104.22,104.12,178.95695944]
[1646216034538,25.9819,104.23,104.13,120.6384]
[1646216034735,26.20460655,104.24,104.13,120.8884]
[1646216034935,26.20460655,104.24,104.14,6.0]
[1646216035135,28.50677266,104.24,104.16,48.1125464]
[1646216035336,42.87027266,104.24,104.16,48.1125464]
[1646216035837,26.20460655,104.23,104.16,48.3625464]
[1646216036041,40.85510655,104.23,104.16,48.3625464]
[1646216038243,0.25,104.23,104.16,48.3625464]
[1646216038444,75.05300655,104.25,104.16,144.5625464]
[1646216038643,63.51300655,104.25,104.16,153.1565464]
[1646216039445,63.51300655,104.25,104.16,56.9565464]
[1646216039646,63.51300655,104.25,104.16,48.3625464]
[1646216039846,63.51300655,104.25,104.16,48.1125464]
[1646216040149,63.51300655,104.25,104.16,144.3125464]
[1646216041150,63.51300655,104.25,104.16,144.5625464]
[1646216042049,63.51300655,104.25,104.16,150.7675464]
[1646216042250,63.51300655,104.25,104.17,24.16]
[1646216042452,63.51300655,104.25,104.17,24.41]
[1646216043350,26.45460655,104.25,104.17,120.61]
[1646216043551,0.25,104.25,104.17,120.61]
[1646216043751,55.04263989,104.27,104.17,143.1119]
[1646216043953,40.10013989,104.27,104.17,200.7619]
[1646216044156,5.0,104.28,104.19,96.2]
[1646216044351,64.31711735,104.3,104.21,57.80922539]
[1646216044352,47.7638,104.3,104.21,57.80922539]
[1646216044554,47.7638,104.3,104.22,23.1031]
[1646216044751,14.3926,104.29,104.22,23.3531]
[1646216045252,37.65313989,104.29,104.22,23.3531]
[1646216045451,49.19313989,104.29,104.22,23.3531]
[1646216045652,26.1826,104.29,104.22,23.3531]
[1646216046151,49.44313989,104.29,104.22,23.3531]
[1646216047059,49.44313989,104.29,104.22,23.1031]
[1646216047854,51.745306,104.29,104.22,23.1031]
[1646216048554,70.96680856,104.29,104.19,56.07214784]
[1646216048759,83.24080931,104.29,104.19,56.07214784]
[1646216049154,83.24080931,104.29,104.19,56.32214784]
[1646216049357,5.0,104.28,104.2,23.8738]
[1646216049578,25.9346,104.27,104.2,23.8738]
[1646216049779,26.1846,104.27,104.2,23.8738]
[1646216050182,49.44513989,104.27,104.2,23.8738]
[1646216051282,19.59574139,104.26,104.17,22.5019]
[1646216051482,14.4004,104.24,104.17,22.5019]
[1646216051681,14.6504,104.24,104.17,22.5019]
[1646216051883,37.91093989,104.24,104.17,22.5019]
[1646216052080,11.54,104.23,104.17,22.5019]
[1646216052280,11.79,104.23,104.17,22.5019]
[1646216053082,14.4013,104.22,104.17,22.5019]
[1646216053283,14.6513,104.22,104.17,22.5019]
[1646216053685,14.6513,104.22,104.16,23.3474]
[1646216053883,26.1913,104.22,104.16,23.3474]
[1646216056486,26.1913,104.22,104.14,22.6486]
[1646216056689,49.45183989,104.22,104.14,22.6486]
[1646216056895,54.45183989,104.22,104.14,22.6486]
[1646216057587,54.45183989,104.22,104.15,52.32939541]
[1646216057787,54.45183989,104.22,104.14,22.6486]
[1646216059393,49.45183989,104.22,104.14,22.6486]
[1646216059791,49.45183989,104.22,104.13,66.77913088]
[1646216059991,54.45183989,104.22,104.13,67.02913088]
[1646216060792,49.45183989,104.22,104.13,67.02913088]
[1646216061091,14.4058,104.19,104.13,23.4445]
[1646216061291,14.6558,104.19,104.13,23.4445]
[1646216061494,26.1958,104.19,104.13,23.4445]
[1646216064096,40.2409,104.19,104.13,23.4445]
[1646216064496,40.2409,104.19,104.13,23.1945]
[1646216066699,26.1958,104.19,104.13,23.1945]
[1646216066901,11.79,104.19,104.13,23.4445]
[1646216067299,0.25,104.19,104.13,23.4445]
[1646216067504,14.4036,104.21,104.13,23.4445]
[1646216067505,11.54,104.2,104.13,23.4445]
[1646216069104,11.79,104.2,104.13,23.4445]
[1646216069708,26.1943,104.2,104.13,23.4445]
[1646216073208,26.1943,104.2,104.13,27.2845]
[1646216074009,14.6543,104.2,104.13,27.2845]
[1646216076928,14.6543,104.2,104.13,23.4445]